Workbook

Sheet Choix
B2: Géodésie 1 | E2: Géodésie 2
B4: Sphéroide | E4: Sphéroide
B5: Région & Datum | E5: Région & Datum
B6: Sphéroide
B8: Paramètres UTM | E8: Paramètres UTM
B9: Projection | E9: Projection
B10: Méridien central | E10: Méridien central
B11: E/W | E11: E/W
B12: Latitude d'origine | E12: Latitude d'origine
B13: N/S | E13: N/S
B14: Applatissement | E14: Applatissement
B15: Faux Est | E15: Faux Est
B16: Faux Nord | E16: Faux Nord
B18: Paramètres Mercator | E18: Paramètres Mercator
B19: Méridien D'orignie | E19: Méridien D'orignie
B20: E/W | E20: E/W
B21: Longitude d'origine | E21: Longitude d'origine
B22: E/W | E22: E/W
B23: Latitude Standard | E23: Latitude Standard
B24: N/S | E24: N/S
B25: Latitude d'origine | E25: Latitude d'origine
B26: N/S | E26: N/S
B27: Ko | E27: Ko
B28: Xo | E28: Xo
B29: Yo | E29: Yo
B31: Paramètres Cônique Conforme | E31: Paramètres Cônique Conforme
B32: Projection | E32: Projection
B33: Système géodésique | C33: =Geodesies!E44 -> France IGN / NTF | E33: Système géodésique | F33: =Geodesies!N44 -> France IGN / NTF
B34: Ellipsoïde | C34: =Geodesies!E45 -> Clarke 1880 IGN | E34: Ellipsoïde | F34: =Geodesies!N45 -> Clarke 1880 IGN

Sheet Geodesies (hidden)
D3: Sphéroide 1 | H3: Datum Shifts de 1 vers 2 | M3: Sphéroide 2
C4: 44 | D4: Région & Datum: | E4: =(INDEX('Table Datum Shifts'!$B$3:$B$185,C4)) -> France / IGN/NTF | G4: =INDEX('Table Datum Shifts'!$D$3:$D$199,C4) -> -168 | H4: Dx | I4: =G4-J4 -> 0 | J4: =INDEX('Table Datum Shifts'!$D$3:$D$199,L4) -> -168 | L4: 44 | M4: Région & Datum: | N4: =(INDEX('Table Datum Shifts'!$B$3:$B$185,L4)) -> France / IGN/NTF
C5: 12 | D5: Sphéroïde: | E5: =INDEX(Spheroides!$C$8:$C$56,C5) -> CLARKE 1880 IGN | G5: =INDEX('Table Datum Shifts'!$E$3:$E$199,C4) -> -60 | H5: Dy | I5: =G5-J5 -> 0 | J5: =INDEX('Table Datum Shifts'!$E$3:$E$199,L4) -> -60 | L5: 12 | M5: Sphéroïde: | N5: =INDEX(Spheroides!$C$8:$C$56,L5) -> CLARKE 1880 IGN
D6: Gd Axe: | E6: =INDEX(Spheroides!$D$8:$D$56,C5) -> 6378249.2 | G6: =INDEX('Table Datum Shifts'!$F$3:$F$199,C4) -> 320 | H6: Dz | I6: 0 | J6: =INDEX('Table Datum Shifts'!$F$3:$F$199,L4) -> 320 | M6: Gd Axe: | N6: =INDEX(Spheroides!$D$8:$D$56,L5) -> 6378249.2
D7: Pt Axe: | E7: =INDEX(Spheroides!$E$8:$E$56,C5) -> 6356515 | G7: =INDEX('Table Datum Shifts'!$G$3:$G$199,C4) -> 0 | H7: Rx | I7: 0 | J7: =INDEX('Table Datum Shifts'!$G$3:$G$199,L4) -> 0 | M7: Pt Axe: | N7: =INDEX(Spheroides!$E$8:$E$56,L5) -> 6356515
D8: e2 | E8: =INDEX(Spheroides!$F$8:$F$56,C5) -> 0.006803487646 | G8: =INDEX('Table Datum Shifts'!$H$3:$H$199,C4) -> 0 | H8: Ry | I8: 0 | J8: =INDEX('Table Datum Shifts'!$H$3:$H$199,L4) -> 0 | M8: e2 | N8: =INDEX(Spheroides!$F$8:$F$56,L5) -> 0.006803487646
D9: 1 / f | E9: =INDEX(Spheroides!$H$8:$H$56,C5) -> 293.4660213 | G9: =INDEX('Table Datum Shifts'!$I$3:$I$199,C4) -> 0 | H9: Rz | I9: 0 | J9: =INDEX('Table Datum Shifts'!$I$3:$I$199,L4) -> 0 | M9: 1 / f | N9: =INDEX(Spheroides!$H$8:$H$56,L5) -> 293.4660213
G10: =INDEX('Table Datum Shifts'!$J$3:$J$199,C4) -> -54.74 | H10: ppm | I10: 0 | J10: =INDEX('Table Datum Shifts'!$J$3:$J$199,L4) -> -54.74
D11: Paramètres UTM | M11: Paramètres UTM
C12: 1 | D12: Projection | E12: =INDEX(Projections!$C$8:$C$9,C12) -> UTM N | L12: 1 | M12: Projection | N12: =INDEX(Projections!$C$8:$C$9,L12) -> UTM N
C13: 1 | D13: Merid. Ctrl. | E13: =INDEX('Parametres Proj'!A3:A46,C13) -> 3 | L13: 1 | M13: Merid. Ctrl. | N13: =INDEX('Parametres Proj'!A3:A46,L13) -> 3
C14: 2 | D14: E/W | E14: =INDEX(Projections!$F$8:$F$9,C14) -> W | L14: 1 | M14: E/W | N14: =INDEX(Projections!$F$8:$F$9,L14) -> E
D15: Zone | E15: =IF(C14=1,C13+30,31-C13) -> 30 | M15: Zone | N15: =IF(L14=1,L13+30,31-L13) -> 31
C16: 1 | D16: Lat. Or. | E16: =INDEX('Parametres Proj'!$F$3:$F$91,C16) -> 0 | L16: 1 | M16: Lat. Or. | N16: =INDEX('Parametres Proj'!$F$3:$F$91,L16) -> 0
C17: 1 | D17: N/S | E17: =IF(C17=1,"N","S") -> N | L17: 1 | M17: N/S | N17: =IF(L17=1,"N","S") -> N
C18: 1 | D18: Aplat. | E18: =INDEX('Parametres Proj'!$E$3:$E$48,C18) -> 0.9990384 | L18: 1 | M18: Aplat. | N18: =INDEX('Parametres Proj'!$E$3:$E$48,L18) -> 0.9990384
C19: 5 | D19: Faux E | E19: =INDEX('Parametres Proj'!$C$3:$C$49,C19) -> 500000 | L19: 5 | M19: Faux E | N19: =INDEX('Parametres Proj'!$C$3:$C$49,L19) -> 500000
C20: 2 | D20: Faux N | E20: =INDEX('Parametres Proj'!$D$3:$D$48,C20) -> 0 | L20: 2 | M20: Faux N | N20: =INDEX('Parametres Proj'!$D$3:$D$48,L20) -> 0
D22: Paramètres Mercator | M22: Paramètres Mercator
C23: 4 | D23: Meridien d'Origine | E23: =INDEX('Parametres Proj'!$F$3:$F$181,C23) -> 3 | L23: 8 | M23: Meridien d'Origine | N23: =INDEX('Parametres Proj'!$F$3:$F$181,L23) -> 9
C24: 1 | D24: E/W | E24: =INDEX(Projections!F8:F9,C24) -> E | L24: 1 | M24: E/W | N24: =INDEX(Projections!F8:F9,L24) -> E
C25: 4 | D25: Longitude d'Origine | E25: =INDEX('Parametres Proj'!F3:F181,C25) -> 3 | L25: 8 | M25: Longitude d'Origine | N25: =INDEX('Parametres Proj'!F3:F181,L25) -> 9
C26: 1 | D26: E/W | E26: =INDEX(Projections!$F$8:$F$9,Geodesies!C26) -> E | L26: 1 | M26: E/W | N26: =INDEX(Projections!$F$8:$F$9,L26) -> E
C27: 1 | D27: Latitude Standard | E27: =INDEX('Parametres Proj'!$F$3:$F$91,C27) -> 0 | L27: 1 | M27: Latitude Standard | N27: =INDEX('Parametres Proj'!$F$3:$F$91,L27) -> 0
C28: 1 | D28: N/S | E28: =INDEX(Projections!H8:H9,C28) -> N | L28: 1 | M28: N/S | N28: =INDEX(Projections!H8:H9,L28) -> N
C29: 1 | D29: Latitude d'Origine | E29: =INDEX('Parametres Proj'!$F$3:$F$91,C29) -> 0 | G29: -7.081402392e-10 | L29: 1 | M29: Latitude d'Origine | N29: =INDEX('Parametres Proj'!$F$3:$F$91,L29) -> 0 | P29: -7.081402392e-10
C30: 1 | D30: N/S | E30: =INDEX(Projections!H8:H9,C30) -> N | L30: 1 | M30: N/S | N30: =INDEX(Projections!H8:H9,L30) -> N
C31: 9 | D31: Ko | E31: =INDEX('Parametres Proj'!E3:E13,C31) -> 1 | L31: 9 | M31: Ko | N31: =INDEX('Parametres Proj'!E3:E13,L31) -> 1
C32: 1 | D32: Xo | E32: =INDEX('Parametres Proj'!C3:C14,C32) -> 0 | L32: 1 | M32: Xo | N32: =INDEX('Parametres Proj'!C3:C14,L32) -> 0
C33: 2 | D33: Yo | E33: =INDEX('Parametres Proj'!D3:D20,C33) -> 0 | G33: =G29+E33 -> -7.081402392e-10 | L33: 2 | M33: Yo | N33: =INDEX('Parametres Proj'!D3:D20,L33) -> 0 | P33: =P29+N33 -> -7.081402392e-10
D35: Paramètres Cônique Conforme | M35: Paramètres Cônique Conforme
C36: 15 | D36: Projection | E36: =INDEX(Projections!C24:C42,Geodesies!C36) -> Lambert IV | L36: 19 | M36: Projection | N36: =INDEX(Projections!C24:C42,Geodesies!L36) -> Lambert 4 Carto
D37: Merid. Ctrl. | E37: =INDEX(Projections!I24:I42,Geodesies!C36) -> 2.33722917 | G37: =E36 -> Lambert IV | L37: 2 | M37: Merid. Ctrl. | N37: =INDEX(Projections!I24:I42,Geodesies!L36) -> 2.33722917
C38: 1 | D38: E/W | E38: =INDEX(Projections!$F$8:$F$9,C38) -> E | L38: 1 | M38: E/W | N38: =INDEX(Projections!$F$8:$F$9,L38) -> E
D39: Lat. Or. | E39: =INDEX(Projections!J24:J42,Geodesies!C36) -> 42.165 | L39: 3 | M39: Lat. Or. | N39: =INDEX(Projections!J24:J42,Geodesies!L36) -> 42.165
C40: 1 | D40: N/S | E40: =INDEX(Projections!H8:H9,C40) -> N | L40: 1 | M40: N/S | N40: =INDEX(Projections!H8:H9,L40) -> N
D41: Aplat. | E41: =INDEX(Projections!K24:K42,Geodesies!C36) -> 0.99987742 | L41: 3 | M41: Aplat. | N41: =INDEX(Projections!K24:K42,Geodesies!L36) -> 0.99994471
D42: Faux E | E42: =INDEX(Projections!G24:G42,Geodesies!C36) -> 234.358 | L42: 6 | M42: Faux E | N42: =INDEX(Projections!G24:G42,Geodesies!L36) -> 234.358
D43: Faux N | E43: =INDEX(Projections!H24:H42,Geodesies!C36) -> 185861.369 | L43: 8 | M43: Faux N | N43: =INDEX(Projections!H24:H42,Geodesies!L36) -> 4185861.369
D44: Système géodésique | E44: =INDEX(Projections!E24:E42,Geodesies!C36) -> France IGN / NTF | M44: Système géodésique | N44: =INDEX(Projections!E24:E42,Geodesies!L36) -> France IGN / NTF
D45: Ellipsoïde | E45: =INDEX(Projections!F24:F42,Geodesies!C36) -> Clarke 1880 IGN | M45: Ellipsoïde | N45: =INDEX(Projections!F24:F42,Geodesies!L36) -> Clarke 1880 IGN

Sheet Geographique
A1: Conversion de geographiques
B3: Géodésie 1 | E3: =Geodesies!E4 -> France / IGN/NTF | L3: Géodésie 2 | O3: =Geodesies!N4 -> France / IGN/NTF
B4: Sphéroïde | E4: =Geodesies!E5 -> CLARKE 1880 IGN | L4: Sphéroïde | O4: =Geodesies!N5 -> CLARKE 1880 IGN
L5: =CaGeLat2(L28,P28,T28) -> 43.165 | M5: =CaGeLon2(L28,P28) -> 2.337229167 | N5: =(ABS(L5)-ABS(L8))*60 -> 9.9 | R5: =(ABS(M5)-ABS(P8))*60 -> 20.23375
B6: =Geodesies!E4 -> France / IGN/NTF | L6: =Geodesies!N4 -> France / IGN/NTF
B7: Latitude | F7: Longitude | J7: Elévation | L7: Latitude | P7: Longitude | T7: Elévation
B8: 43 | C8: 9 | D8: 54 | E8: =IF(B8+C8/60+D8/3600>0,"N","S") -> N | F8: 2 | G8: 20 | H8: 14.025 | I8: =IF(F8+G8/60+H8/3600>0,"E","W") -> E | J8: 300 | L8: =TRUNC(L5,0) -> 43 | M8: =TRUNC((ABS(L5)-ABS(L8))*60) -> 9 | N8: =(N5-M8)*60 -> 54 | O8: =IF(L5<0,"S","N") -> N | P8: =TRUNC(M5,0) -> 2 | Q8: =TRUNC((ABS(M5)-ABS(P8))*60) -> 20 | R8: =(R5-Q8)*60 -> 14.025 | S8: =IF(M5<0,"W","E") -> E | T8: =CaGeEle2(L28,P28,T28) -> 300
B9: =B7 -> Latitude | C9: Latitude | F9: =F7 -> Longitude | G9: Longitude | L9: =L7 -> Latitude | M9: Latitude | P9: =P7 -> Longitude | Q9: Longitude
B10: =B8 -> 43 | C10: =B8 -> 43 | D10: =C8+D8/60 -> 9.9 | E10: =E8 -> N | F10: =F8 -> 2 | G10: =F8 -> 2 | H10: =G8+H8/60 -> 20.23375 | I10: =I8 -> E | L10: =L8 -> 43 | M10: =TRUNC(L5,0) -> 43 | N10: =ABS(L5-TRUNC(L5,0))*60 -> 9.9 | O10: =IF(L5<0,"S","N") -> N | P10: =P8 -> 2 | Q10: =TRUNC(M5,0) -> 2 | R10: =ABS(M5-P8)*60 -> 20.23375 | S10: =IF(M5<0,"W","E") -> E
B11: =B8 -> 43 | C11: =C8+D8/60 -> 9.9 | F11: =F8 -> 2 | G11: =G8+H8/60 -> 20.23375 | L11: =L8 -> 43 | M11: =M8+N8/60 -> 9.9 | P11: =P8 -> 2 | Q11: =Q8+R8/60 -> 20.23375
B12: =Geodesies!E12&" Zone "&Geodesies!E15 -> UTM N Zone 30 | L12: =Geodesies!N12&" Zone "&Geodesies!N15 -> UTM N Zone 31
B13: Easting | F13: Northing | L13: Easting | P13: Northing
B14: =GeUtX1(B11,C11,F11,G11) -> 933678.4383 | F14: =GeUtY1(B11,C11,F11,G11) -> 4789983.745 | L14: =GeUtX2(L11,M11,P11,Q11) -> 446151.2814 | P14: =GeUtY2(L11,M11,P11,Q11) -> 4776357.814
B15: Convergeance | F15: Fact. d'Echelle | L15: Convergeance | P15: Fact. d'Echelle
B16: =TRUNC(B17,0) -> 3 | C16: =TRUNC((ABS(B17)-ABS(B16))*60) -> 39 | D16: =(D17-C16)*60 -> 24.81654714 | E16: =IF(B17<0,"W","E") -> E | F16: =FactEchelle1(B14,F14) -> 1.001354048 | L16: =TRUNC(L17,0) -> 0 | M16: =TRUNC((ABS(L17)-ABS(L16))*60) -> 27 | N16: =(N17-M16)*60 -> 12.28865439 | O16: =IF(L17<0,"W","E") -> W | P16: =FactEchelle2(L14,P14) -> 0.9990740889
B17: =convergence1(B14,F14) -> 3.656893485 | D17: =(ABS(B17)-ABS(B16))*60 -> 39.41360912 | L17: =convergence2(L14,P14) -> -0.4534135151 | N17: =(ABS(L17)-ABS(L16))*60 -> 27.20481091
B18: ="Mercator "&Geodesies!E23&Geodesies!E24&" "&Geodesies!E27&Geodesies!E28 -> Mercator 3E 0N | L18: ="Mercator "&Geodesies!N23&Geodesies!N24&" "&Geodesies!N27&Geodesies!N28 -> Mercator 9E 0N
B19: Easting | F19: Northing | L19: Easting | P19: Northing
B20: =GeMeX1(F11,G11) -> 260192.844 | F20: =GeMeY1(B11,C11) -> 5307682.289 | L20: =GeMeX2(P11,Q11) -> 260192.844 | P20: =GeMeY2(L11,M11) -> 5307682.289
B22: =Geodesies!E36 -> Lambert IV | L22: =Geodesies!N36 -> Lambert 4 Carto
B23: X | F23: Y | L23: X | P23: Y
B24: =GeLaX1(B11,C11,F11,G11) -> 234.3577289 | F24: =GeLaY1(B11,C11,F11,G11) -> 296937.7362 | L24: =GeLaX2(L11,M11,P11,Q11) -> 234.3577289 | P24: =GeLaY2(L11,M11,P11,Q11) -> 4296945.211
B26: Cartésiens | L26: Cartésiens
B27: X | F27: Y | J27: Z | L27: X | P27: Y | T27: Z
B28: =GeCaX(B11,C11,F11,G11,J8) -> 4655976.233 | F28: =GeCaY(B11,C11,F11,G11,J8) -> 190033.6037 | J28: =GeCaZ(B11,C11,F11,G11,J8) -> 4340805.805 | L28: =CaCaX(B28,F28,J28) -> 4655976.233 | P28: =CaCaY(B28,F28,J28) -> 190033.6037 | T28: =CaCaZ(B28,F28,J28) -> 4340805.805

Sheet UTM
A1: Conversion d'UTM
B3: Géodésie 1 | E3: =Geodesies!E4 -> France / IGN/NTF | L3: Géodésie 2 | O3: =Geodesies!N4 -> France / IGN/NTF
B4: Sphéroïde | E4: =Geodesies!E5 -> CLARKE 1880 IGN | L4: Sphéroïde | O4: =Geodesies!N5 -> CLARKE 1880 IGN
B5: =UtGeLat(B14,F14) -> 45.9341362 | C5: =UtGeLon(B14,F14) -> -2.999677353 | D5: =(ABS(B5)-ABS(B8))*60 -> 56.04817223 | H5: =(ABS(C5)-ABS(F8))*60 -> 59.9806412 | L5: =CaGeLat2(L28,P28,T28) -> 45.9341362 | M5: =CaGeLon2(L28,P28) -> -2.999677353 | N5: =(ABS(L5)-ABS(L8))*60 -> 56.04817223 | R5: =(ABS(M5)-ABS(P8))*60 -> 59.9806412
B6: Coordonnées Géographiques | L6: Coordonnées Géographiques
B7: Latitude | E7: Longitude | J7: Elévation | L7: Latitude | P7: Longitude | T7: Elévation
B8: =TRUNC(B5,0) -> 45 | C8: =TRUNC((ABS(B5)-ABS(B8))*60) -> 56 | D8: =(D5-C8)*60 -> 2.890333909 | E8: =IF(B5<0,"S","N") -> N | F8: =TRUNC(C5,0) -> -2 | G8: =TRUNC((ABS(C5)-ABS(F8))*60) -> 59 | H8: =(H5-G8)*60 -> 58.83847191 | I8: =IF(C5<0,"W","E") -> W | J8: 0 | L8: =TRUNC(L5,0) -> 45 | M8: =TRUNC((ABS(L5)-ABS(L8))*60) -> 56 | N8: =(N5-M8)*60 -> 2.890333909 | O8: =IF(L5<0,"S","N") -> N | P8: =TRUNC(M5,0) -> -2 | Q8: =TRUNC((ABS(M5)-ABS(P8))*60) -> 59 | R8: =(R5-Q8)*60 -> 58.83847191 | S8: =IF(M5<0,"W","E") -> W | T8: =CaGeEle2(L28,P28,T28) -> 9.313225746e-10
B9: =B7 -> Latitude | C9: Latitude | F9: =F7 -> 0 | G9: Longitude | L9: =L7 -> Latitude | M9: Latitude | P9: =P7 -> Longitude | Q9: Longitude
B10: =B8 -> 45 | C10: =TRUNC(B5,0) -> 45 | D10: =ABS(B5-TRUNC(B5,0))*60 -> 56.04817223 | E10: =IF(B5<0,"S","N") -> N | F10: =F8 -> -2 | G10: =TRUNC(C5,0) -> -2 | H10: =ABS(C5-F8)*60 -> 59.9806412 | I10: =IF(C5<0,"W","E") -> W | L10: =L8 -> 45 | M10: =TRUNC(L5,0) -> 45 | N10: =ABS(L5-TRUNC(L5,0))*60 -> 56.04817223 | O10: =IF(L5<0,"S","N") -> N | P10: =P8 -> -2 | Q10: =TRUNC(M5,0) -> -2 | R10: =ABS(M5-P8)*60 -> 59.9806412 | S10: =IF(M5<0,"W","E") -> W
B12: =Geodesies!E12&" Zone "&Geodesies!E15 -> UTM N Zone 30 | L12: =Geodesies!N12&" Zone "&Geodesies!N15 -> UTM N Zone 31
B13: Easting | F13: Northing | L13: Easting | P13: Northing
B14: 500025 | F14: 5083560 | L14: =GeUtX2(L10,M10,P10,Q10) -> 108720.8434 | P14: =GeUtY2(L10,M10,P10,Q10) -> 5075439.951
B15: Convergeance | F15: Fact. d'Echelle | L15: Convergeance | P15: Fact. d'Echelle
B16: =TRUNC(B17,0) -> 0 | C16: =TRUNC((ABS(B17)-ABS(B16))*60) -> 0 | D16: =(D17-C16)*60 -> 0.8346053078 | E16: =IF(B17<0,"W","E") -> E | F16: =FactEchelle1(B14,F14) -> 0.9990384 | L16: =TRUNC(L17,0) -> -3 | M16: =TRUNC((ABS(L17)-ABS(L16))*60) -> 36 | N16: =(N17-M16)*60 -> 35.82358915 | O16: =IF(L17<0,"W","E") -> W | P16: =FactEchelle2(L14,P14) -> 1.000922103
B17: =convergence1(B14,F14) -> 0.0002318348077 | D17: =(ABS(B17)-ABS(B16))*60 -> 0.01391008846 | L17: =convergence2(L14,P14) -> -3.609950997 | N17: =(ABS(L17)-ABS(L16))*60 -> 36.59705982
B18: ="Mercator "&Geodesies!E23&Geodesies!E24&" "&Geodesies!E27&Geodesies!E28 -> Mercator 3E 0N | L18: ="Mercator "&Geodesies!N23&Geodesies!N24&" "&Geodesies!N27&Geodesies!N28 -> Mercator 9E 0N
B19: Easting | F19: Northing | L19: Easting | P19: Northing
B20: =GeMeX1(F10,G10) -> -226361.5355 | F20: =GeMeY1(B10,C10) -> 5709557.77 | L20: =GeMeX2(P10,Q10) -> -226361.5355 | P20: =GeMeY2(L10,M10) -> 5709557.77
B22: =Geodesies!E36 -> Lambert IV | L22: =Geodesies!N36 -> Lambert 4 Carto
B23: X | F23: Y | L23: X | P23: Y
B24: =GeLaX1(B10,C10,F10,G10) -> -340347.8925 | F24: =GeLaY1(B10,C10,F10,G10) -> 593126.4689 | L24: =GeLaX2(L10,M10,P10,Q10) -> -340370.8131 | P24: =GeLaY2(L10,M10,P10,Q10) -> 4593153.877
B26: Cartésiens | L26: Cartésiens
B27: X | F27: Y | J27: Z | L27: X | P27: Y | T27: Z
B28: =GeCaX(C10,D10,G10,H10,J8) -> 4437698.351 | F28: =GeCaY(C10,D10,G10,H10,J8) -> -232544.8573 | J28: =GeCaZ(C10,D10,G10,H10,J8) -> 4559867.247 | L28: =CaCaX(B28,F28,J28) -> 4437698.351 | P28: =CaCaY(B28,F28,J28) -> -232544.8573 | T28: =CaCaZ(B28,F28,J28) -> 4559867.247

Sheet Mercator
A1: Conversion de Mercators
B3: Géodésie 1 | E3: =Geodesies!E4 -> France / IGN/NTF | L3: Géodésie 2 | O3: =Geodesies!N4 -> France / IGN/NTF
B4: Sphéroïde | E4: =Geodesies!E5 -> CLARKE 1880 IGN | L4: Sphéroïde | O4: =Geodesies!N5 -> CLARKE 1880 IGN
B5: =MeGeLat(F20) -> 41.1080733 | C5: =MeGeLon(B20) -> 2.694804127 | D5: =(ABS(B5)-ABS(B8))*60 -> 6.484397871 | H5: =(ABS(C5)-ABS(F8))*60 -> 41.68824764 | L5: =CaGeLat2(L28,P28,T28) -> 41.1080733 | M5: =CaGeLon2(L28,P28) -> 2.694804127 | N5: =(ABS(L5)-ABS(L8))*60 -> 6.484397871 | R5: =(ABS(M5)-ABS(P8))*60 -> 41.68824764
B6: Coordonnées Géographiques | L6: Coordonnées Géographiques
B7: Latitude | F7: Longitude | J7: Elévation | L7: Latitude | P7: Longitude | T7: Elévation
B8: =TRUNC(B5,0) -> 41 | C8: =TRUNC((ABS(B5)-ABS(B8))*60) -> 6 | D8: =(D5-C8)*60 -> 29.06387229 | E8: =IF(B5<0,"S","N") -> N | F8: =TRUNC(C5,0) -> 2 | G8: =TRUNC((ABS(C5)-ABS(F8))*60) -> 41 | H8: =(H5-G8)*60 -> 41.29485839 | I8: =IF(C5<0,"W","E") -> E | J8: 0 | L8: =TRUNC(L5,0) -> 41 | M8: =TRUNC((ABS(L5)-ABS(L8))*60) -> 6 | N8: =(N5-M8)*60 -> 29.06387229 | O8: =IF(L5<0,"S","N") -> N | P8: =TRUNC(M5,0) -> 2 | Q8: =TRUNC((ABS(M5)-ABS(P8))*60) -> 41 | R8: =(R5-Q8)*60 -> 41.29485839 | S8: =IF(M5<0,"W","E") -> E | T8: =CaGeEle2(L28,P28,T28) -> -9.313225746e-10
B9: =B7 -> Latitude | C9: Latitude | F9: =F7 -> Longitude | G9: Longitude | L9: =L7 -> Latitude | M9: Latitude | P9: =P7 -> Longitude | Q9: Longitude
B10: =B8 -> 41 | C10: =TRUNC(B5,0) -> 41 | D10: =ABS(B5-TRUNC(B5,0))*60 -> 6.484397871 | E10: =IF(B5<0,"S","N") -> N | F10: =F8 -> 2 | G10: =TRUNC(C5,0) -> 2 | H10: =ABS(C5-F8)*60 -> 41.68824764 | I10: =IF(C5<0,"W","E") -> E | L10: =L8 -> 41 | M10: =TRUNC(L5,0) -> 41 | N10: =ABS(L5-TRUNC(L5,0))*60 -> 6.484397871 | O10: =IF(L5<0,"S","N") -> N | P10: =P8 -> 2 | Q10: =TRUNC(M5,0) -> 2 | R10: =ABS(M5-P8)*60 -> 41.68824764 | S10: =IF(M5<0,"W","E") -> E
B11: =B8 -> 41 | C11: =C8+D8/60 -> 6.484397871 | F11: =F8 -> 2 | G11: =G8+H8/60 -> 41.68824764 | L11: =L8 -> 41 | M11: =M8+N8/60 -> 6.484397871 | P11: =P8 -> 2 | Q11: =Q8+R8/60 -> 41.68824764
B12: =Geodesies!E12&" Zone "&Geodesies!E15 -> UTM N Zone 30 | L12: =Geodesies!N12&" Zone "&Geodesies!N15 -> UTM N Zone 31
B13: Easting | F13: Northing | L13: Easting | P13: Northing
B14: =GeUtX1(B11,C11,F11,G11) -> 978016.9278 | F14: =GeUtY1(B11,C11,F11,G11) -> 4563540.253 | L14: =GeUtX2(L11,M11,P11,Q11) -> 474387.8552 | P14: =GeUtY2(L11,M11,P11,Q11) -> 4547938.405
B15: Convergeance | F15: Fact. d'Echelle | L15: Convergeance | P15: Fact. d'Echelle
B16: =TRUNC(B17,0) -> 3 | C16: =TRUNC((ABS(B17)-ABS(B16))*60) -> 45 | D16: =(D17-C16)*60 -> 4.750909567 | E16: =IF(B17<0,"W","E") -> E | F16: =FactEchelle1(B14,F14) -> 1.001853348 | L16: =TRUNC(L17,0) -> 0 | M16: =TRUNC((ABS(L17)-ABS(L16))*60) -> 12 | N16: =(N17-M16)*60 -> 2.382141472 | O16: =IF(L17<0,"W","E") -> W | P16: =FactEchelle2(L14,P14) -> 0.9990464776
B17: =convergence1(B14,F14) -> 3.751319697 | D17: =(ABS(B17)-ABS(B16))*60 -> 45.07918183 | L17: =convergence2(L14,P14) -> -0.200661706 | N17: =(ABS(L17)-ABS(L16))*60 -> 12.03970236
B18: ="Mercator "&Geodesies!E23&Geodesies!E24&" "&Geodesies!E27&Geodesies!E28 -> Mercator 3E 0N | L18: ="Mercator "&Geodesies!N23&Geodesies!N24&" "&Geodesies!N27&Geodesies!N28 -> Mercator 9E 0N
B19: Easting | F19: Northing | L19: Easting | P19: Northing
B20: 300000 | F20: 5000000 | L20: =GeMeX2(P11,Q11) -> 300000 | P20: =GeMeY2(L11,M11) -> 5000000
B22: =Geodesies!E36 -> Lambert IV | L22: =Geodesies!N36 -> Lambert 4 Carto
B23: X | F23: Y | L23: X | P23: Y
B24: =GeLaX1(B11,C11,F11,G11) -> 30272.33103 | F24: =GeLaY1(B11,C11,F11,G11) -> 68545.52733 | L24: =GeLaX2(L11,M11,P11,Q11) -> 30274.35253 | P24: =GeLaY2(L11,M11,P11,Q11) -> 4068537.632
B26: Cartésiens | L26: Cartésiens
B27: X | F27: Y | J27: Z | L27: X | P27: Y | T27: Z
B28: =GeCaX(B11,C11,F11,G11,J8) -> 4807584.513 | F28: =GeCaY(B11,C11,F11,G11,J8) -> 226282.9864 | J28: =GeCaZ(B11,C11,F11,G11,J8) -> 4171187.671 | L28: =CaCaX(B28,F28,J28) -> 4807584.513 | P28: =CaCaY(B28,F28,J28) -> 226282.9864 | T28: =CaCaZ(B28,F28,J28) -> 4171187.671

Sheet Lambert
A1: Conversion de Lamberts
B3: Géodésie 1 | E3: =Geodesies!E4 -> France / IGN/NTF | L3: Géodésie 2 | O3: =Geodesies!N4 -> France / IGN/NTF
B4: Sphéroïde | E4: =Geodesies!E5 -> CLARKE 1880 IGN | L4: Sphéroïde | O4: =Geodesies!N5 -> CLARKE 1880 IGN
B5: =LaGeLat(B24,F24) -> 42.16499999 | C5: =LaGeLon(B24,F24) -> 2.33722917 | D5: =(ABS(B5)-ABS(B8))*60 -> 9.899999407 | H5: =(ABS(C5)-ABS(F8))*60 -> 20.2337502 | L5: =CaGeLat2(L28,P28,T28) -> 42.16499999 | M5: =CaGeLon2(L28,P28) -> 2.33722917 | N5: =(ABS(L5)-ABS(L8))*60 -> 9.899999407 | R5: =(ABS(M5)-ABS(P8))*60 -> 20.2337502
B6: Coordonnées Géographiques | L6: Coordonnées Géographiques
B7: Latitude | F7: Longitude | J7: Elévation | L7: Latitude | P7: Longitude | T7: Elévation
B8: =TRUNC(B5,0) -> 42 | C8: =TRUNC((ABS(B5)-ABS(B8))*60) -> 9 | D8: =(D5-C8)*60 -> 53.99996441 | E8: =IF(B5<0,"S","N") -> N | F8: =TRUNC(C5,0) -> 2 | G8: =TRUNC((ABS(C5)-ABS(F8))*60) -> 20 | H8: =(H5-G8)*60 -> 14.025012 | I8: =IF(C5<0,"W","E") -> E | J8: 100 | L8: =TRUNC(L5,0) -> 42 | M8: =TRUNC((ABS(L5)-ABS(L8))*60) -> 9 | N8: =(N5-M8)*60 -> 53.99996441 | O8: =IF(L5<0,"S","N") -> N | P8: =TRUNC(M5,0) -> 2 | Q8: =TRUNC((ABS(M5)-ABS(P8))*60) -> 20 | R8: =(R5-Q8)*60 -> 14.025012 | S8: =IF(M5<0,"W","E") -> E | T8: =CaGeEle2(L28,P28,T28) -> 100
B9: =B7 -> Latitude | C9: Latitude | F9: =F7 -> Longitude | G9: Longitude | L9: =L7 -> Latitude | M9: Latitude | P9: =P7 -> Longitude | Q9: Longitude
B10: =B8 -> 42 | C10: =TRUNC(B5,0) -> 42 | D10: =ABS(B5-TRUNC(B5,0))*60 -> 9.899999407 | E10: =IF(B5<0,"S","N") -> N | F10: =F8 -> 2 | G10: =TRUNC(C5,0) -> 2 | H10: =ABS(C5-F8)*60 -> 20.2337502 | I10: =IF(C5<0,"W","E") -> E | L10: =L8 -> 42 | M10: =TRUNC(L5,0) -> 42 | N10: =ABS(L5-TRUNC(L5,0))*60 -> 9.899999407 | O10: =IF(L5<0,"S","N") -> N | P10: =P8 -> 2 | Q10: =TRUNC(M5,0) -> 2 | R10: =ABS(M5-P8)*60 -> 20.2337502 | S10: =IF(M5<0,"W","E") -> E
B11: =B8 -> 42 | C11: =C8+D8/60 -> 9.899999407 | F11: =F8 -> 2 | G11: =G8+H8/60 -> 20.2337502 | L11: =L8 -> 42 | M11: =M8+N8/60 -> 9.899999407 | P11: =P8 -> 2 | Q11: =Q8+R8/60 -> 20.2337502
B12: =Geodesies!E12&" Zone "&Geodesies!E15 -> UTM N Zone 30 | L12: =Geodesies!N12&" Zone "&Geodesies!N15 -> UTM N Zone 31
B13: Easting | F13: Northing | L13: Easting | P13: Northing
B14: =GeUtX1(B11,C11,F11,G11) -> 445281.2469 | F14: =GeUtY1(B11,C11,F11,G11) -> -425494.0423 | L14: =GeUtX2(L11,M11,P11,Q11) -> 445281.2469 | P14: =GeUtY2(L11,M11,P11,Q11) -> 4665379.669
B15: Convergeance | F15: Fact. d'Echelle | L15: Convergeance | P15: Fact. d'Echelle
B16: =TRUNC(B17,0) -> 0 | C16: =TRUNC((ABS(B17)-ABS(B16))*60) -> 26 | D16: =(D17-C16)*60 -> 41.66818863 | E16: =IF(B17<0,"W","E") -> W | F16: =FactEchelle1(B14,F14) -> 0.9990752602 | L16: =TRUNC(L17,0) -> 0 | M16: =TRUNC((ABS(L17)-ABS(L16))*60) -> 26 | N16: =(N17-M16)*60 -> 41.6681886 | O16: =IF(L17<0,"W","E") -> W | P16: =FactEchelle2(L14,P14) -> 0.9990752602
B17: =convergence1(B14,F14) -> -0.4449078302 | D17: =(ABS(B17)-ABS(B16))*60 -> 26.69446981 | L17: =convergence2(L14,P14) -> -0.4449078302 | N17: =(ABS(L17)-ABS(L16))*60 -> 26.69446981
B18: ="Mercator "&Geodesies!E23&Geodesies!E24&" "&Geodesies!E27&Geodesies!E28 -> Mercator 3E 0N | L18: ="Mercator "&Geodesies!N23&Geodesies!N24&" "&Geodesies!N27&Geodesies!N28 -> Mercator 9E 0N
B19: Easting | F19: Northing | L19: Easting | P19: Northing
B20: =GeMeX1(F11,G11) -> 260192.8444 | F20: =GeMeY1(B11,C11) -> 5156840.433 | L20: =GeMeX2(P11,Q11) -> 260192.8444 | P20: =GeMeY2(L11,M11) -> 5156840.433
B22: =Geodesies!E36 -> Lambert IV | L22: =Geodesies!N36 -> Lambert 4 Carto
B23: X | F23: Y | L23: X | P23: Y
B24: 234.358 | F24: 185861.369 | L24: =GeLaX2(L11,M11,P11,Q11) -> 234.358 | P24: =GeLaY2(L11,M11,P11,Q11) -> 4185861.368
B26: Cartésiens | L26: Cartésiens
B27: X | F27: Y | J27: Z | L27: X | P27: Y | T27: Z
B28: =GeCaX(B11,C11,F11,G11,J8) -> 4731051.137 | F28: =GeCaY(B11,C11,F11,G11,J8) -> 193097.7851 | J28: =GeCaZ(B11,C11,F11,G11,J8) -> 4258985.249 | L28: =CaCaX(B28,F28,J28) -> 4731051.137 | P28: =CaCaY(B28,F28,J28) -> 193097.7851 | T28: =CaCaZ(B28,F28,J28) -> 4258985.249

Sheet Cartesiens
A1: Conversion de Cartésiens
B3: Géodésie 1 | E3: =Geodesies!E4 -> France / IGN/NTF | L3: Géodésie 2 | O3: =Geodesies!N4 -> France / IGN/NTF
B4: Sphéroïde | E4: =Geodesies!E5 -> CLARKE 1880 IGN | L4: Sphéroïde | O4: =Geodesies!N5 -> CLARKE 1880 IGN
B5: =CaGeLat1(B28,F28,J28) -> 48.6 | C5: =CaGeLon1(B28,F28) -> 7.737222222 | D5: =(ABS(B5)-ABS(B8))*60 -> 36 | H5: =(ABS(C5)-ABS(F8))*60 -> 44.23333333 | L5: =CaGeLat2(L28,P28,T28) -> 48.6 | M5: =CaGeLon2(L28,P28) -> 7.737222222 | N5: =(ABS(L5)-ABS(L8))*60 -> 36 | R5: =(ABS(M5)-ABS(P8))*60 -> 44.23333333
B6: Coordonnées Géographiques | L6: Coordonnées Géographiques
B7: Latitude | F7: Longitude | J7: Elévation | L7: Latitude | P7: Longitude | T7: Elévation
B8: =TRUNC(B5,0) -> 48 | C8: =TRUNC((ABS(B5)-ABS(B8))*60) -> 36 | D8: =(D5-C8)*60 -> 4.205787718e-08 | E8: =IF(B5<0,"S","N") -> N | F8: =TRUNC(C5,0) -> 7 | G8: =TRUNC((ABS(C5)-ABS(F8))*60) -> 44 | H8: =(H5-G8)*60 -> 14 | I8: =IF(C5<0,"W","E") -> E | J8: =CaGeEle1(B28,F28,J28) -> -9.635463357e-06 | L8: =TRUNC(L5,0) -> 48 | M8: =TRUNC((ABS(L5)-ABS(L8))*60) -> 36 | N8: =(N5-M8)*60 -> 4.205787718e-08 | O8: =IF(L5<0,"S","N") -> N | P8: =TRUNC(M5,0) -> 7 | Q8: =TRUNC((ABS(M5)-ABS(P8))*60) -> 44 | R8: =(R5-Q8)*60 -> 14 | S8: =IF(M5<0,"W","E") -> E | T8: =CaGeEle2(L28,P28,T28) -> -9.635463357e-06
B9: =B7 -> Latitude | C9: Latitude | F9: =F7 -> Longitude | G9: Longitude | L9: =L7 -> Latitude | M9: Latitude | P9: =P7 -> Longitude | Q9: Longitude
B10: =B8 -> 48 | C10: =TRUNC(B5,0) -> 48 | D10: =ABS(B5-TRUNC(B5,0))*60 -> 36 | E10: =IF(B5<0,"S","N") -> N | F10: =F8 -> 7 | G10: =TRUNC(C5,0) -> 7 | H10: =ABS(C5-F8)*60 -> 44.23333333 | I10: =IF(C5<0,"W","E") -> E | L10: =L8 -> 48 | M10: =TRUNC(L5,0) -> 48 | N10: =ABS(L5-TRUNC(L5,0))*60 -> 36 | O10: =IF(L5<0,"S","N") -> N | P10: =P8 -> 7 | Q10: =TRUNC(M5,0) -> 7 | R10: =ABS(M5-P8)*60 -> 44.23333333 | S10: =IF(M5<0,"W","E") -> E
B11: =B8 -> 48 | C11: =C8+D8/60 -> 36 | F11: =F8 -> 7 | G11: =G8+H8/60 -> 44.23333333 | L11: =L8 -> 48 | M11: =M8+N8/60 -> 36 | P11: =P8 -> 7 | Q11: =Q8+R8/60 -> 44.23333333
B12: =Geodesies!E12&" Zone "&Geodesies!E15 -> UTM N Zone 30 | L12: =Geodesies!N12&" Zone "&Geodesies!N15 -> UTM N Zone 31
B13: Easting | F13: Northing | L13: Easting | P13: Northing
B14: =GeUtX1(B11,C11,F11,G11) -> 1290610.379 | F14: =GeUtY1(B11,C11,F11,G11) -> 5435530.405 | L14: =GeUtX2(L11,M11,P11,Q11) -> 849029.4309 | P14: =GeUtY2(L11,M11,P11,Q11) -> 5390488.994
B15: Convergeance | F15: Fact. d'Echelle | L15: Convergeance | P15: Fact. d'Echelle
B16: =TRUNC(B17,0) -> 8 | C16: =TRUNC((ABS(B17)-ABS(B16))*60) -> 5 | D16: =(D17-C16)*60 -> 45.0217033 | E16: =IF(B17<0,"W","E") -> E | F16: =FactEchelle1(B14,F14) -> 1.006730669 | L16: =TRUNC(L17,0) -> 3 | M16: =TRUNC((ABS(L17)-ABS(L16))*60) -> 33 | N16: =(N17-M16)*60 -> 25.2627701 | O16: =IF(L17<0,"W","E") -> E | P16: =FactEchelle2(L14,P14) -> 1.00053616
B17: =convergence1(B14,F14) -> 8.095839362 | D17: =(ABS(B17)-ABS(B16))*60 -> 5.750361722 | L17: =convergence2(L14,P14) -> 3.557017436 | N17: =(ABS(L17)-ABS(L16))*60 -> 33.42104617
B18: ="Mercator "&Geodesies!E23&Geodesies!E24&" "&Geodesies!E27&Geodesies!E28 -> Mercator 3E 0N | L18: ="Mercator "&Geodesies!N23&Geodesies!N24&" "&Geodesies!N27&Geodesies!N28 -> Mercator 9E 0N
B19: Easting | F19: Northing | L19: Easting | P19: Northing
B20: =GeMeX1(F11,G11) -> 303979.5248 | F20: =GeMeY1(B11,C11) -> 6174993.414 | L20: =GeMeX2(P11,Q11) -> 861348.9356 | P20: =GeMeY2(L11,M11) -> 6174993.414
B22: =Geodesies!E36 -> Lambert IV | L22: =Geodesies!N36 -> Lambert 4 Carto
B23: X | F23: Y | L23: X | P23: Y
B24: =GeLaX1(B11,C11,F11,G11) -> 400829.0564 | F24: =GeLaY1(B11,C11,F11,G11) -> 915168.8423 | L24: =GeLaX2(L11,M11,P11,Q11) -> 400856.0157 | P24: =GeLaY2(L11,M11,P11,Q11) -> 4915217.923
B26: Cartésiens | L26: Cartésiens
B27: X | F27: Y | J27: Z | L27: X | P27: Y | T27: Z
B28: 4187633.886 | F28: 568960.7888 | J28: 4760966.209 | L28: =CaCaX(B28,F28,J28) -> 4187633.886 | P28: =CaCaY(B28,F28,J28) -> 568960.7888 | T28: =CaCaZ(B28,F28,J28) -> 4760966.209

Sheet Spheroides (hidden)
A1: Liste des Ellipsoides Disponibles
C7: Nom | D7: Demi Grand | E7: Demi Petit | F7: e2 | G7: n | H7: 1 / f
B8: 1 | C8: AIRY | D8: 6377563.396 | E8: 6356256.909 | F8: =POWER(1/D8*(SQRT((D8*D8)-(E8*E8))),2) -> 0.006670540074 | G8: 0.00167322025 | H8: =1/((D8-E8)/D8) -> 299.3249613
B9: 2 | C9: AIRY MOD | D9: 6377340.189 | E9: 6356034.448 | F9: 0.006670539981 | G9: 0.001673220305 | H9: 299.3249655
B10: 3 | C10: AUSTRALIAN NATIONAL 1967/84 | D10: 6378160 | E10: 6356774.719 | F10: 0.006694541916 | H10: =1/((D10-E10)/D10) -> 298.2499973
B11: 4 | C11: BESSEL 1841 | D11: 6377397.155 | E11: 6356078.963 | F11: 0.006674372175 | G11: 0.001674184787 | H11: 299.1528154
B12: 5 | C12: BESSEL 1841 MOD | D12: 6377483.865 | E12: 6356165.383 | F12: 0.006674372221 | G12: 0.001674184798 | H12: 299.1528133
B13: 6 | C13: BESSEL NGO | D13: 6377492.018 | E13: 6356173.509 | F13: 0.006674372142 | H13: 299.1528168
B14: 7 | C14: BESSEL RD / POTSDAM | D14: 6377397.155 | E14: 6356078.963 | F14: 0.006674372175 | H14: 299.1528154
B15: 8 | C15: BROADCAST | D15: 6378135 | E15: 6356750.52 | F15: 0.006694317783 | H15: 298.2599998
B16: 9 | C16: CLARKE 1856 | D16: 6378235.6 | E16: 6356560.14 | F16: 0.00678514592 | H16: 294.2606801
B17: 10 | C17: CLARKE 1866 | D17: 6378206.4 | E17: 6356583.8 | F17: 0.006768657997 | G17: 0.001697915683 | H17: 294.9786982
B18: 11 | C18: CLARKE 1880 | D18: 6378249.145 | E18: 6356514.87 | F18: 0.006803511142 | G18: 0.001706688477 | H18: 293.4650061
B19: 12 | C19: CLARKE 1880 IGN | D19: 6378249.2 | E19: 6356515 | F19: =POWER(1/D19*(SQRT((D19*D19)-(E19*E19))),2) -> 0.006803487646 | H19: 293.4660213
B20: 13 | C20: CLARKE 1880 MOD | D20: 6378249.145 | E20: 6356514.87 | F20: =POWER(1/D20*(SQRT((D20*D20)-(E20*E20))),2) -> 0.006803511142 | G20: 0.001706688477 | H20: 293.4650061
B21: 14 | C21: CLARKE 1880 (PALESTINE) | D21: 6378300.782 | E21: 6356566.427 | F21: =POWER(1/D21*(SQRT((D21*D21)-(E21*E21))),2) -> 0.006803481156 | H21: 293.4663017
B22: 15 | C22: DANISH 1876 / ANDRAE | D22: 6377104.43 | E22: 6355847.415 | F22: 0.006655555628 | H22: 299.9999967
B23: 16 | C23: EVEREST (INDE) METRIQUE | D23: 6377301.243 | E23: 6356100.23 | F23: 0.00663784612 | H23: 300.8017232
B24: 17 | C24: EVEREST (MALAYA) | D24: 6377295.664 | E24: 6356094.668 | F24: 0.006637846604 | H24: 300.8017012
B25: 18 | C25: EVEREST 1830 | D25: 6377276.345 | E25: 6356075.413 | F25: 0.006637846674 | G25: 0.001664992251 | H25: 300.801698
B26: 19 | C26: EVEREST 1830 (MOD.) | D26: 6377298.561 | E26: 6356097.555 | F26: 0.006637846719 | H26: 300.801696
B27: 20 | C27: EVEREST BORNEO | D27: 6377298.556 | E27: 6356097.555 | F27: 0.006637845161 | H27: 300.8017667
B28: 21 | C28: EVEREST MOD. | D28: 6377304.063 | E28: 6356103.039 | F28: 0.006637846628 | H28: 300.8017001
B29: 22 | C29: FISHER 1960 (MERCURY) | D29: 6378166 | E29: 6356784.284 | F29: 0.0066934215 | H29: 298.3000055
B30: 23 | C30: FISHER 1968 | D30: 6378150 | E30: 6356768.337 | F30: 0.006693421699 | H30: 298.2999966
B31: 24 | C31: FISCHER MOD | D31: 6378160 | E31: 6356774.719 | F31: 0.006694541916 | G31: 0.00167926114 | H31: 298.2499973
B32: 25 | C32: FISHER MOD. 1960 | D32: 6378155 | E32: 6356773.32 | F32: 0.006693421774 | H32: 298.2999933
B33: 26 | C33: GRS 67 | D33: 6378160 | E33: 6356774.516 | F33: 0.006694605357 | H33: 298.2471662
B34: 27 | C34: GRS 80 | D34: 6378137 | E34: 6356752.314 | F34: 0.006694380067 | H34: 298.2572201
B35: 28 | C35: HELMERT 1906 | D35: 6378200 | E35: 6356818 | F35: 0.006693474635 | G35: 0.001678992523 | H35: 298.2976335
B36: 29 | C36: HOUGH | D36: 6378270 | E36: 6356794.343 | F36: 0.006722670158 | G36: 0.001686340675 | H36: 296.999994
B37: 30 | C37: INTERNATIONAL | D37: 6378388 | E37: 6356911.946 | F37: 0.006722670031 | G37: 0.001686340651 | H37: 296.9999996
B38: 31 | C38: JEFFREYS 1948 | D38: 6378099 | E38: 6356631 | F38: 0.006720457146 | H38: 297.0979598
B39: 32 | C39: KRASSOVSKY | D39: 6378245 | E39: 6356863 | F39: 0.00669342749 | G39: 0.001678980657 | H39: 298.2997381
B40: 33 | C40: PRECISE | D40: 6378145 | E40: 6356759.769 | F40: 0.006694542007 | G40: 0.001679261164 | H40: 298.2499932
B41: 34 | C41: REF ELLIPSOIDE 1967 | D41: 6378160 | E41: 6356774.719 | F41: 0.006694541916 | G41: 0.00167926114 | H41: 298.2499973
B42: 35 | C42: S AMERICA 1969 | D42: 6378160 | E42: 6356774.719 | F42: 0.006694541916 | G42: 0.00167926114 | H42: 298.2499973
B43: 36 | C43: STRUVE 1860 | D43: 6378298.3 | E43: 6356657.143 | F43: 0.006774359698 | H43: 294.7300045
B44: 37 | C44: SVANBERG | D44: 6376797 | E44: 6355837.971 | F44: 0.006562725865 | H44: 304.2505929
B45: 38 | C45: WAR OFFICE 1924 | D45: 6378300 | E45: 6356751.689 | F45: 0.006745343375 | H45: 295.9999974
B46: 39 | C46: WGS 60 | D46: 6378165 | E46: 6356783.287 | F46: 0.00669342161 | H46: 298.3000006
B47: 40 | C47: WGS 66 | D47: 6378145 | E47: 6356759.769 | F47: 0.006694542007 | H47: 298.2499932
B48: 41 | C48: WGS 72 | D48: 6378135 | E48: 6356750.52 | F48: 0.006694317783 | G48: 0.00167920473 | H48: 298.2599998
B49: 42 | C49: WGS 84 | D49: 6378137 | E49: 6356752.314 | F49: 0.006694380067 | G49: 0.001679220406 | H49: 298.2572201
B50: 43
B51: 44
B52: 45
B53: 46

Sheet Table Datum Shifts (hidden)
A1: 6 | C1: 181
A2: 180 | B2: Zone / Datum | C2: Spheroide | D2: Dx | E2: Dy | F2: Dz | G2: Rx | H2: Ry | I2: Rz | J2: ppm
B3: Afrique du Sud / S Africa Cape | C3: Clarke 1880 Mod. | D3: -136 | E3: -108 | F3: -292 | G3: 0 | H3: 0 | I3: 0 | J3: 0
B4: Alaska / NAD27 | C4: Clarke 1866 | D4: -12.62 | E4: 156.56 | F4: 180.52 | G4: 0 | H4: 0 | I4: 0.814 | J4: 0.427
B5: Alaska / NAD27 | C5: Clarke 1866 | D5: -5 | E5: 135 | F5: 172 | G5: 0 | H5: 0 | I5: 0 | J5: 0
B6: Alaska / NAD83 | C6: GRS80 | D6: 0 | E6: 0 | F6: 0 | G6: 0 | H6: 0 | I6: 0 | J6: 0
B7: Amerique Central / NAD83 | C7: GRS80 | D7: 0 | E7: 0 | F7: 0 | G7: 0 | H7: 0 | I7: 0 | J7: 0
B8: Arabie Saoudite / Nahrwan | C8: Clarke 1880 Mod. | D8: -231 | E8: -196 | F8: 482 | G8: 0 | H8: 0 | I8: 0 | J8: 0
B9: Argentine / Campo Inchauste | C9: International | D9: -148 | E9: 136 | F9: 90 | G9: 0 | H9: 0 | I9: 0 | J9: 0
B10: Argentine / S. America 1969 | C10: S America 1969 | D10: -57 | E10: 1 | F10: -41 | G10: 0 | H10: 0 | I10: 0 | J10: 0
B11: Australie / Australian Geodetic 1966 | C11: RE 1967 | D11: -133 | E11: -48 | F11: 148 | G11: 0 | H11: 0 | I11: 0 | J11: 0
B12: Australie / Australian Nat | C12: RE 1967 | D12: -122 | E12: -41 | F12: 150 | G12: 0 | H12: 0 | I12: 0.554 | J12: 0.227
B13: Australie / Autralian | C13: RE 1984 | D13: -134 | E13: -48 | F13: 149 | G13: 0 | H13: 0 | I13: 0 | J13: 0
B14: Bahreïn / Ain El Abl 1970 | C14: International | D14: -150 | E14: -251 | F14: -2 | G14: 0 | H14: 0 | I14: 0 | J14: 0
B15: Bangladesh / Indian | C15: Everest 1830 | D15: 289 | E15: 734 | F15: 257 | G15: 0 | H15: 0 | I15: 0 | J15: 0
B16: Belize / NAD27 | C16: Clarke 1866 | D16: 0 | E16: 125 | F16: 194 | G16: 0 | H16: 0 | I16: 0 | J16: 0
B17: Bolivie / Prov. S America 1956 | C17: International | D17: -288 | E17: 175 | F17: -376 | G17: 0 | H17: 0 | I17: 0 | J17: 0
B18: Bolivie / S. America 1969 | C18: S. America 1969 | D18: -57 | E18: 1 | F18: -41 | G18: 0 | H18: 0 | I18: 0 | J18: 0
B19: Botswana / Cape Arc 1950 | C19: Clarke 1880 Mod | D19: -138 | E19: -105 | F19: -289 | G19: 0 | H19: 0 | I19: 0 | J19: 0
B20: Bresil / S. America 1969 | C20: S. America 1969 | D20: -57 | E20: 1 | F20: -41 | G20: 0 | H20: 0 | I20: 0 | J20: 0
B21: Brunei / Timbalai | C21: Everest 1830 | D21: -689 | E21: 691 | F21: -46 | G21: 0 | H21: 0 | I21: 0 | J21: 0
B22: Canada / NAD27 | C22: Clarke 1866 | D22: -10 | E22: 158 | F22: 187 | G22: 0 | H22: 0 | I22: 0 | J22: 0
B23: Canada / NAD27 (Canada) | C23: Clarke 1866 | D23: -9 | E23: 139 | F23: 177.5 | G23: 0 | H23: 0 | I23: 0.554 | J23: 0.227
B24: Canal Panama / NAD27 | C24: Clarke 1866 | D24: 0 | E24: 125 | F24: 201 | G24: 0 | H24: 0 | I24: 0 | J24: 0
B25: Chili / Prov. S Chilean 63 | C25: International | D25: 16 | E25: 196 | F25: 93 | G25: 0 | H25: 0 | I25: 0 | J25: 0
B26: Chili / S. America 1969 | C26: S. America 1969 | D26: -57 | E26: 1 | F26: -41 | G26: 0 | H26: 0 | I26: 0 | J26: 0
B27: Chypre / ED50 | C27: International | D27: -104 | E27: -101 | F27: -140 | G27: 0 | H27: 0 | I27: 0 | J27: 0
B28: Colombie / Bogota Observatory | C28: International | D28: 307 | E28: 304 | F28: -318 | G28: 0 | H28: 0 | I28: 0 | J28: 0
B29: Colombie / Prov. S America 1956 | C29: International | D29: -288 | E29: 175 | F29: -376 | G29: 0 | H29: 0 | I29: 0 | J29: 0
B30: Colombie / S. America 1969 | C30: S. America 1969 | D30: -57 | E30: 1 | F30: -41 | G30: 0 | H30: 0 | I30: 0 | J30: 0
B31: Corée / Tokyo | C31: Bessel 1841 | D31: -128 | E31: 481 | F31: 664 | G31: 0 | H31: 0 | I31: 0 | J31: 0
B32: Egypte / ED50 | C32: International | D32: -130 | E32: -117 | F32: -151 | G32: 0 | H32: 0 | I32: 0 | J32: 0
B33: Egypte / Old Egyptian | C33: Helmert 1906 | D33: -130 | E33: 110 | F33: -13 | G33: 0 | H33: 0 | I33: 0 | J33: 0
B34: Emirats Arabes Unifies / Nahrwan | C34: Clarke 1880 Mod | D34: -249 | E34: -156 | F34: 381 | G34: 0 | H34: 0 | I34: 0 | J34: 0
B35: Equateur / Prov. S American 1956 | C35: International | D35: -288 | E35: 175 | F35: -376 | G35: 0 | H35: 0 | I35: 0 | J35: 0
B36: Equateur / S American 1969 | C36: S American 1969 | D36: -57 | E36: 1 | F36: -41 | G36: 0 | H36: 0 | I36: 0 | J36: 0
B37: Erytree / Massawa | C37: Bessel 1841 | D37: 639 | E37: 405 | F37: 60 | G37: 0 | H37: 0 | I37: 0 | J37: 0
B38: Espagne / ED50 | C38: International | D38: -88 | E38: -109 | F38: -122 | G38: 0 | H38: 0 | I38: 0 | J38: 0
B39: Espiranto Santos / Santo (DOS) | C39: International | D39: 170 | E39: 42 | F39: 84 | G39: 0 | H39: 0 | I39: 0 | J39: 0
B40: Ethiopie / Adindan | C40: Clarke 1880 Mod | D40: -165 | E40: -11 | F40: 206 | G40: 0 | H40: 0 | I40: 0 | J40: 0
B41: Europe / ED50 | C41: International | D41: -89.5 | E41: -93.8 | F41: -123.1 | G41: 0 | H41: 0 | I41: -0.156 | J41: 1.2
B42: Europe / ED87 | C42: International | D42: -83.11 | E42: -97.38 | F42: -117.23 | G42: -0.006 | H42: -0.045 | I42: 0.044 | J42: 0.122
B43: Finlande / ED50 | C43: International | D43: -87 | E43: -95 | F43: -120 | G43: 0 | H43: 0 | I43: 0 | J43: 0
B44: France / ED50 IGN | C44: International | D44: -84 | E44: -97 | F44: -117 | G44: 0 | H44: 0 | I44: 0 | J44: -14.19
B45: France / ED79 France | C45: International | D45: -83 | E45: -95 | F45: -116 | G45: 0 | H45: 0 | I45: 0 | J45: -14.19
B46: France / IGN/NTF | C46: Clarke 1880 (IGN) | D46: -168 | E46: -60 | F46: 320 | G46: 0 | H46: 0 | I46: 0 | J46: -54.74
B47: France / RGF93 | C47: WGS84
B48: France / WGS72 France | C48: WGS72 | D48: 0 | E48: 12 | F48: 6 | G48: 0 | H48: 0 | I48: 0 | J48: 0.031
B49: Gabon / M'Paraloko | C49: Clarke 1880 | D49: -77.9 | E49: -132.9 | F49: 43.7 | G49: 0 | H49: 0 | I49: 0 | J49: 0
B50: Gizo / Gizo DOS 1968 | C50: International | D50: 230 | E50: -199 | F50: -752 | G50: 0 | H50: 0 | I50: 0 | J50: 0
B51: Grece / ED50 | C51: International | D51: -84 | E51: -95 | F51: -130 | G51: 0 | H51: 0 | I51: 0 | J51: 0
B52: Groenland / NAD27 | C52: Clarke 1866 | D52: 11 | E52: 114 | F52: 195 | G52: 0 | H52: 0 | I52: 0 | J52: 0
B53: Groenland / Qornoq | C53: International | D53: 164 | E53: 138 | F53: -189 | G53: 0 | H53: 0 | I53: 0 | J53: 0
B54: Guatemala / NAD27 | C54: Clarke 1866 | D54: 0 | E54: 125 | F54: 194 | G54: 0 | H54: 0 | I54: 0 | J54: 0
B55: Guyana / Prov. S American 1956 | C55: International | D55: -288 | E55: 175 | F55: -376 | G55: 0 | H55: 0 | I55: 0 | J55: 0
B56: Guyana / S American 1969 | C56: S American | D56: -57 | E56: 1 | F56: -41 | G56: 0 | H56: 0 | I56: 0 | J56: 0
B57: Honduras / NAD27 | C57: Clarke 1866 | D57: 0 | E57: 125 | F57: 194 | G57: 0 | H57: 0 | I57: 0 | J57: 0
B58: Hong Kong / Hong Kong 1963 | C58: International | D58: -156 | E58: -271 | F58: -189 | G58: 0 | H58: 0 | I58: 0 | J58: 0
B59: Icelande / Hjorsey 1955 | C59: International | D59: -73 | E59: 46 | F59: -86 | G59: 0 | H59: 0 | I59: 0 | J59: 0
B60: Ile d'Efate et Erromango / Bellevue (IGN) | C60: International | D60: -127 | E60: -769 | F60: 472 | G60: 0 | H60: 0 | I60: 0 | J60: 0
B61: Ile d'Oahu / ? | C61: Clarke 1866 | D61: 56 | E61: -268 | F61: -182.5 | G61: 0 | H61: 0 | I61: 0.554 | J61: 0.227
B62: Ile de Costa Rica / NAD27 | C62: Clarke 1866 | D62: 0 | E62: 125 | F62: 194 | G62: 0 | H62: 0 | I62: 0 | J62: 0
B63: Ile de Cuba / NAD27 | C63: Clarke 1866 | D63: -7 | E63: 152 | F63: 178 | G63: 0 | H63: 0 | I63: 0 | J63: 0
B64: Ile de Guam / Guam 1963 | C64: Clarke 1966 | D64: 252 | E64: -209 | F64: -751 | G64: 0 | H64: 0 | I64: 0 | J64: 0
B65: Ile de Kerguelen / Kerguelen | C65: International | D65: 145 | E65: -187 | F65: 103 | G65: 0 | H65: 0 | I65: 0 | J65: 0
B66: Ile de l'Ascension / Ascension 1958 | C66: International | D66: -207 | E66: 107 | F66: 52 | G66: 0 | H66: 0 | I66: 0 | J66: 0
B67: Ile de la Barbades / NAD27 | C67: Clarke 1866 | D67: -7 | E67: 152 | F67: 178 | G67: 0 | H67: 0 | I67: 0 | J67: 0
B68: Ile de la Jamaique / NAD27 | C68: Clarke 1866 | D68: -7 | E68: 152 | F68: 178 | G68: 0 | H68: 0 | I68: 0 | J68: 0
B69: Ile de Madere / SE Base | C69: International | D69: -499 | E69: -249 | F69: 314 | G69: 0 | H69: 0 | I69: 0 | J69: 0
B70: Ile de Sao Miguel / Sao Braz | C70: International | D70: -203 | E70: 141 | F70: 53 | G70: 0 | H70: 0 | I70: 0 | J70: 0
B71: Ile de Sardaigne / ED50 | C71: International | D71: -97 | E71: -103 | F71: -120 | G71: 0 | H71: 0 | I71: 0 | J71: 0
B72: Ile de Sardaigne / Rome 1940 | C72: International | D72: -255 | E72: -65 | F72: 9 | G72: 0 | H72: 0 | I72: 0 | J72: 0
B73: Ile de Sicile / ED50 | C73: International | D73: -97 | E73: -88 | F73: -135 | G73: 0 | H73: 0 | I73: 0 | J73: 0
B74: Ile de Tern / Asrto B4 | C74: International | D74: 114 | E74: -116 | F74: -333 | G74: 0 | H74: 0 | I74: 0 | J74: 0
B75: Ile Diego Garcia / ISTS 073 Astro 1969 | C75: International | D75: 208 | E75: -435 | F75: -229 | G75: 0 | H75: 0 | I75: 0 | J75: 0
B76: Ile Dominique / NAD27 | C76: Clarke 1866 | D76: -7 | E76: 152 | F76: 178 | G76: 0 | H76: 0 | I76: 0 | J76: 0
B77: Ile Georgia / DOS 1968 | C77: International | D77: 230 | E77: -199 | F77: -752 | G77: 0 | H77: 0 | I77: 0 | J77: 0
B78: Ile Grand Cayman / NAD27 | C78: Clarke 1866 | D78: -7 | E78: 152 | F78: 178 | G78: 0 | H78: 0 | I78: 0 | J78: 0
B79: Ile Guadalcanal / Gux 1 Astro | C79: International | D79: 252 | E79: -209 | F79: -751 | G79: 0 | H79: 0 | I79: 0 | J79: 0
B80: Ile Hawaii Hawaii / Old Hawaiian | C80: Clarke 1866 | D80: 89 | E80: -279 | F80: -183 | G80: 0 | H80: 0 | I80: 0 | J80: 0
B81: Ile Hawaii Kauai / Old Hawaiian | C81: Clarke 1866 | D81: 45 | E81: -290 | F81: -172 | G81: 0 | H81: 0 | I81: 0 | J81: 0
B82: Ile Hawaii Maui / Old Hawaiian | C82: Clarke 1866 | D82: 65 | E82: -290 | F82: -190 | G82: 0 | H82: 0 | I82: 0 | J82: 0
B83: Ile Hawaii Oahu / Old Hawaiian | C83: Clarke 1866 | D83: 56 | E83: -284 | F83: -181 | G83: 0 | H83: 0 | I83: 0 | J83: 0
B84: Ile Iwo Jima / Astro Beacon East | C84: International | D84: 145 | E84: 75 | F84: -272 | G84: 0 | H84: 0 | I84: 0 | J84: 0
B85: Ile Johnson / Johnson Is 1961 | C85: International | D85: 191 | E85: -77 | F85: -204 | G85: 0 | H85: 0 | I85: 0 | J85: 0
B86: Ile Mahe / Ile Mahe 1971 | C86: Clarke 1880 Mod | D86: 41 | E86: -220 | F86: -134 | G86: 0 | H86: 0 | I86: 0 | J86: 0
B87: Ile Marcus / Asrto Stn 1952 | C87: International | D87: 124 | E87: -234 | F87: -25 | G87: 0 | H87: 0 | I87: 0 | J87: 0
B88: Ile Pitcairn / Pitcairn Astro 1967 | C88: International | D88: 185 | E88: 165 | F88: 42 | G88: 0 | H88: 0 | I88: 0 | J88: 0
B89: Ile Saint Helene / Astro DOS 7 | C89: International | D89: -320 | E89: 550 | F89: -494 | G89: 0 | H89: 0 | I89: 0 | J89: 0
B90: Ile Santa Maria / Sao Braz | C90: International | D90: -203 | E90: 141 | F90: 53 | G90: 0 | H90: 0 | I90: 0 | J90: 0
B91: Ile Tristan da Cunha / Tristan Astro | C91: International | D91: -632 | E91: 438 | F91: -609 | G91: 0 | H91: 0 | I91: 0 | J91: 0
B92: Ile Viti Levu / Viti Levu 1916 | C92: Clarke 1880 Mod | D92: 51 | E92: 391 | F92: -36 | G92: 0 | H92: 0 | I92: 0 | J92: 0
B93: Iles Bahamas / Cape Canaveral | C93: Clarke 1866 | D93: -2 | E93: 150 | F93: 181 | G93: 0 | H93: 0 | I93: 0 | J93: 0
B94: Iles Bahamas / NAD27 | C94: Clarke 1866 | D94: -4 | E94: 154 | F94: 178 | G94: 0 | H94: 0 | I94: 0 | J94: 0
B95: Iles Caicos / NAD27 | C95: Clarke 1866 | D95: -7 | E95: 152 | F95: 178 | G95: 0 | H95: 0 | I95: 0 | J95: 0
B96: Iles Caiman / LC 5 Astro | C96: Clarke 1866 | D96: 42 | E96: 124 | F96: 147 | G96: 0 | H96: 0 | I96: 0 | J96: 0
B97: Iles Canaries / Pico de las Nieves | C97: International | D97: -307 | E97: -92 | F97: 127 | G97: 0 | H97: 0 | I97: 0 | J97: 0
B98: Iles Chatam / Ile Chatam 1971 | C98: International | D98: 175 | E98: -38 | F98: 113 | G98: 0 | H98: 0 | I98: 0 | J98: 0
B99: Iles Cocos / Australian | C99: RE 1967 | D99: -491 | E99: -22 | F99: 435 | G99: 0 | H99: 0 | I99: 0 | J99: 0
B100: Iles de Mascarenes / Reunion | C100: International | D100: 94 | E100: -948 | F100: -1262 | G100: 0 | H100: 0 | I100: 0 | J100: 0
B101: Iles de Midway / Midway Astro 1961 | C101: International | D101: 912 | E101: -58 | F101: 1227 | G101: 0 | H101: 0 | I101: 0 | J101: 0
B102: Iles de Paques / Iles de Paques 1967 | C102: International | D102: 211 | E102: 147 | F102: 111 | G102: 0 | H102: 0 | I102: 0 | J102: 0
B103: Iles des Açores / Observatorio 1966 | C103: International | D103: -425 | E103: -169 | F103: 81 | G103: 0 | H103: 0 | I103: 0 | J103: 0
B104: Iles des Açores / SW Base | C104: International | D104: -104 | E104: 167 | F104: -38 | G104: 0 | H104: 0 | I104: 0 | J104: 0
B105: Iles des Bermudes / Bermuda 1957 | C105: Clarke 1866 | D105: -73 | E105: 213 | F105: 296 | G105: 0 | H105: 0 | I105: 0 | J105: 0
B106: Iles Falklands / Sapper Hill 1943 | C106: International | D106: -355 | E106: 16 | F106: 74 | G106: 0 | H106: 0 | I106: 0 | J106: 0
B107: Iles Maldives / Gandajika Base | C107: International | D107: -133 | E107: -321 | F107: 50 | G107: 0 | H107: 0 | I107: 0 | J107: 0
B108: Iles Marshall / Wake Eniwetok 1960 | C108: Hough | D108: 101 | E108: 52 | F108: -39 | G108: 0 | H108: 0 | I108: 0 | J108: 0
B109: Iles Phoenix / Canton Astro 1966 | C109: International | D109: 298 | E109: -304 | F109: -375 | G109: 0 | H109: 0 | I109: 0 | J109: 0
B110: Iles Salvages / Marco Astro | C110: International | D110: -289 | E110: -124 | F110: 60 | G110: 0 | H110: 0 | I110: 0 | J110: 0
B111: Iles Sous le Vent / NAD27 | C111: Clarke 1866 | D111: -7 | E111: 152 | F111: 178 | G111: 0 | H111: 0 | I111: 0 | J111: 0
B112: Iles Trinité & Tobago / Naparima (BWI) | C112: International | D112: -2 | E112: 374 | F112: 172 | G112: 0 | H112: 0 | I112: 0 | J112: 0
B113: Iles Trinité & Tobago / S. American 1969 | C113: S. American 1969 | D113: -57 | E113: 1 | F113: -41 | G113: 0 | H113: 0 | I113: 0 | J113: 0
B114: Iles Vierges / Puerto Rico | C114: Clarke 1866 | D114: 11 | E114: 72 | F114: -101 | G114: 0 | H114: 0 | I114: 0 | J114: 0
B115: Iran / ED50 | C115: International | D115: -117 | E115: -132 | F115: -164 | G115: 0 | H115: 0 | I115: 0 | J115: 0
B116: Irelande / Ireland 1965 | C116: Airy Mod | D116: 506 | E116: -122 | F116: 611 | G116: 0 | H116: 0 | I116: 0 | J116: 0
B117: Japon / Tokyo | C117: Bessel 1841 | D117: -128 | E117: 481 | F117: 664 | G117: 0 | H117: 0 | I117: 0 | J117: 0
B118: Kenya / Cape Arc 1960 | C118: Clarke 1880 Mod | D118: -161 | E118: -7 | F118: -300 | G118: 0 | H118: 0 | I118: 0 | J118: 0
B119: Lesotho / Cape Arc 1950 | C119: Clarke 1880 Mod | D119: -125 | E119: -108 | F119: -295 | G119: 0 | H119: 0 | I119: 0 | J119: 0
B120: Liberia / Liberia 1964 | C120: Clarke 1880 Mod | D120: -90 | E120: 40 | F120: 88 | G120: 0 | H120: 0 | I120: 0 | J120: 0
B121: Malaisie (Est) / Timbalia | C121: Everest 1830 | D121: -689 | E121: 691 | F121: -46 | G121: 0 | H121: 0 | I121: 0 | J121: 0
B122: Malaisie (Ouest) / Kertau 1948 | C122: Everest Mod | D122: -11 | E122: 851 | F122: 5 | G122: 0 | H122: 0 | I122: 0 | J122: 0
B123: Malawi / Cape Arc 1950 | C123: Clarke 1880 Mod | D123: -161 | E123: -73 | F123: -317 | G123: 0 | H123: 0 | I123: 0 | J123: 0
B124: Mali / Adindan | C124: Clarke 1880 Mod | D124: -163 | E124: -20 | F124: 220 | G124: 0 | H124: 0 | I124: 0 | J124: 0
B125: Maroc / Merchich | C125: Clarke 1880 Mod | D125: 31 | E125: 146 | F125: 47 | G125: 0 | H125: 0 | I125: 0 | J125: 0
B126: Maui / Maui | C126: Clarke 1866 | D126: 65 | E126: -272 | F126: -192.5 | G126: 0 | H126: 0 | I126: 0.554 | J126: 0.227
B127: Mexique / NAD27 | C127: Clarke 1866 | D127: -12 | E127: 130 | F127: 190 | G127: 0 | H127: 0 | I127: 0 | J127: 0
B128: Mindanao / Luzon | C128: Clarke 1866 | D128: -133 | E128: -79 | F128: -72 | G128: 0 | H128: 0 | I128: 0 | J128: 0
B129: Monde / DOPPLER | C129: Precise | D129: 0 | E129: 0 | F129: 4.5 | G129: 0 | H129: 0 | I129: 0.814 | J129: -0.6
B130: Monde / NWL10D | C130: Broadcast | D130: 0 | E130: 0 | F130: 4.5 | G130: 0 | H130: 0 | I130: 0.814 | J130: -0.602
B131: Monde / NWL9D | C131: Precise | D131: 0 | E131: 0 | F131: 4.5 | G131: 0 | H131: 0 | I131: 0.814 | J131: -0.6
B132: Monde / WGS72 | C132: WGS72 | D132: 0 | E132: 0 | F132: 4.5 | G132: 0 | H132: 0 | I132: 0.554 | J132: 0.227
B133: Monde / WGS84 | C133: WGS84 | D133: 0 | E133: 0 | F133: 0 | G133: 0 | H133: 0 | I133: 0 | J133: 0
B134: Monde / WGS84 SEA | C134: WGS84 | D134: 0 | E134: 0 | F134: 0 | G134: 0 | H134: 0 | I134: 0 | J134: 0
B135: Namibie / Schwarzeck | C135: Bessel 1841 Mod | D135: 616 | E135: 97 | F135: -251 | G135: 0 | H135: 0 | I135: 0 | J135: 0
B136: Neherlandes / RD | C136: Bessel RD
B137: Nepal / Indian | C137: Everst 1830 | D137: 289 | E137: 734 | F137: 257 | G137: 0 | H137: 0 | I137: 0 | J137: 0
B138: Nicaragua / NAD27 | C138: Clarke 1866 | D138: 0 | E138: 125 | F138: 194 | G138: 0 | H138: 0 | I138: 0 | J138: 0
B139: Nigeria / Minna | C139: Clarke 1880 Mod | D139: -92 | E139: -93 | F139: 122 | G139: 0 | H139: 0 | I139: 0 | J139: 0
B140: Norvège / ED50 | C140: International | D140: -87 | E140: -95 | F140: -120 | G140: 0 | H140: 0 | I140: 0 | J140: 0
B141: Norvège-Nord / ED50 | C141: International | D141: -100.94 | E141: -96.58 | F141: -144.25 | G141: -0.825 | H141: -0.075 | I141: -1.657 | J141: 0.008
B142: Nouvelles Zelandes / GD 1949 | C142: International | D142: 84 | E142: -22 | F142: 209 | G142: 0 | H142: 0 | I142: 0 | J142: 0
B143: Oman / Oman | C143: Clarke 1880 Mod | D143: -346 | E143: -1 | F143: 224 | G143: 0 | H143: 0 | I143: 0 | J143: 0
B144: Paraguay / Chua Astro | C144: International | D144: -134 | E144: 229 | F144: -29 | G144: 0 | H144: 0 | I144: 0 | J144: 0
B145: Paraguay / S American 1969 | C145: S American 1969 | D145: -57 | E145: 1 | F145: -41 | G145: 0 | H145: 0 | I145: 0 | J145: 0
B146: Perou / Prov S American 1956 | C146: International | D146: -288 | E146: 175 | F146: -376 | G146: 0 | H146: 0 | I146: 0 | J146: 0
B147: Perou / S American 1969 | C147: S American 1969 | D147: -57 | E147: 1 | F147: -41 | G147: 0 | H147: 0 | I147: 0 | J147: 0
B148: Phillipines / Luzon 1911 | C148: Clarke 1866 | D148: -133 | E148: -77 | F148: -51 | G148: 0 | H148: 0 | I148: 0 | J148: 0
B149: Portugal / ED50 | C149: International | D149: -88 | E149: -109 | F149: -122 | G149: 0 | H149: 0 | I149: 0 | J149: 0
B150: Puerto Rico / Puerto Rico | C150: Clarke 1866 | D150: 11 | E150: 72 | F150: -101 | G150: 0 | H150: 0 | I150: 0 | J150: 0
B151: Qatar / Nahrwan | C151: Clarke 1880 Mod | D151: -249.17 | E151: -152.09 | F151: 391.46 | G151: 0 | H151: 0 | I151: 0 | J151: 0
B152: Qatar / Nahrwan Maersk | C152: Clarke 1880 Mod | D152: -250.2 | E152: -153.09 | F152: 391.7 | G152: 0 | H152: 0 | I152: 0 | J152: 0
B153: Qatar / Qatar National | C153: International | D153: -128.16 | E153: -282.42 | F153: 21.93 | G153: 0 | H153: 0 | I153: 0 | J153: 0
B154: Royaume Uni / DOPPLER | C154: Precise
B155: Royaume Uni / ED50 | C155: International | D155: -86 | E155: -96 | F155: -120 | G155: 0 | H155: 0 | I155: 0 | J155: 0
B156: Royaume Uni / OS(SN)80 | C156: Airy | D156: 364.71 | E156: -109.42 | F156: 429 | G156: 0 | H156: 0 | I156: -0.156 | J156: 1.198
B157: Russie / Pulkovo | C157: Krassovsky
B158: Russie / WGS72 | C158: WGS72
B159: Sabah / Timbalai 1948 | C159: Everest 1830 | D159: -689 | E159: 691 | F159: -46 | G159: 0 | H159: 0 | I159: 0 | J159: 0
B160: San Salvador / NAD27 | C160: Clarke 1866 | D160: 1 | E160: 140 | F160: 165 | G160: 0 | H160: 0 | I160: 0 | J160: 0
B161: Sarawak / Timbalai 1948 | C161: Everst 1830 | D161: -689 | E161: 691 | F161: -46 | G161: 0 | H161: 0 | I161: 0 | J161: 0
B162: Senegal / Adindan | C162: Clarke 1880 Mod | D162: -128 | E162: -18 | F162: 224 | G162: 0 | H162: 0 | I162: 0 | J162: 0
B163: Singapour / Kertau 1948 | C163: Everest 1830 | D163: 8.21 | E163: 861.39 | F163: 1.31 | G163: 0 | H163: 0 | I163: 0.814 | J163: -0.38
B164: Singapour / Kertau 1948 | C164: Everest Mod | D164: -11 | E164: 851 | F164: 5 | G164: 0 | H164: 0 | I164: 0 | J164: 0
B165: Singapour / South Asia | C165: Fisher Mod | D165: 7 | E165: -10 | F165: -26 | G165: 0 | H165: 0 | I165: 0 | J165: 0
B166: Somalie / Afgooye | C166: Krassovsky | D166: -43 | E166: -163 | F166: 45 | G166: 0 | H166: 0 | I166: 0 | J166: 0
B167: Soudan / Adindan | C167: Clarke 1880 Mod | D167: -161 | E167: -14 | F167: 205 | G167: 0 | H167: 0 | I167: 0 | J167: 0
B168: Sri Lanka / Kandawala | C168: Everest 1830 | D168: -97 | E168: 787 | F168: 86 | G168: 0 | H168: 0 | I168: 0 | J168: 0
B169: Sumatra / Djakarta (Batavia) | C169: Bessel 1841 | D169: -377 | E169: 681 | F169: -50 | G169: 0 | H169: 0 | I169: 0 | J169: 0
B170: Surinam / Zanderij | C170: International | D170: -265 | E170: 120 | F170: -358 | G170: 0 | H170: 0 | I170: 0 | J170: 0
B171: Swaziland / Cape Arc 1950 | C171: Clarke 1880 | D171: -134 | E171: -105 | F171: -295 | G171: 0 | H171: 0 | I171: 0 | J171: 0
B172: Tanzanie / Cape Arc 1960 | C172: Clarke 1880 | D172: -158 | E172: -12 | F172: -299 | G172: 0 | H172: 0 | I172: 0 | J172: 0
B173: Tasmanie / Australian National | C173: RE 1967 | D173: -134 | E173: -48 | F173: 149 | G173: 0 | H173: 0 | I173: 0 | J173: 0
B174: Thailande / Indian | C174: Everest 1830 | D174: 214 | E174: 836 | F174: 303 | G174: 0 | H174: 0 | I174: 0 | J174: 0
B175: Thailande / Moattama | C175: WGS84 | D175: -4.69 | E175: 8.5 | F175: 2.89 | G175: 0 | H175: 0 | I175: 0 | J175: 0
B176: Tunisie / Carthage | C176: Clarke 1880 Mod | D176: -263 | E176: 6 | F176: 431 | G176: 0 | H176: 0 | I176: 0 | J176: 0
B177: Turquie / NAD27 | C177: Clarke 1866 | D177: -7 | E177: 152 | F177: 178 | G177: 0 | H177: 0 | I177: 0 | J177: 0
B178: USA / NAD27 (CONUS) | C178: Clarke 1866 | D178: -22 | E178: 157 | F178: 180.5 | G178: 0 | H178: 0 | I178: 0.554 | J178: 0.227
B179: Venezuela / Prov. S. American 1956 | C179: International | D179: -288 | E179: 175 | F179: -376 | G179: 0 | H179: 0 | I179: 0 | J179: 0
B180: Venezuela / S. American 1969 | C180: S. American 1969 | D180: -57 | E180: 1 | F180: -41 | G180: 0 | H180: 0 | I180: 0 | J180: 0
B181: Vietnam / Indian | C181: Everest 1830 | D181: 289 | E181: 734 | F181: 257 | G181: 0 | H181: 0 | I181: 0 | J181: 0
B182: Zaire / Cape Arc 1950 | C182: Clarke 1880 | D182: -169 | E182: -19 | F182: -278 | G182: 0 | H182: 0 | I182: 0 | J182: 0
B183: Zambie / Cape Arc 1950 | C183: Clarke 1880 | D183: -147 | E183: -74 | F183: -283 | G183: 0 | H183: 0 | I183: 0 | J183: 0

Sheet Projections (hidden)
A1: Parametres de Projection
C7: Nom | D7: Ro | E7: Meridien Central | F7: E/W | G7: Lat. Origin | H7: N/S | I7: Facteur d'échelle | J7: Easting d'origine | K7: Northing d'origine
B8: 1 | C8: UTM N | F8: E | H8: N | I8: 0.9996 | J8: 500000 | K8: 0
B9: 2 | C9: UTM S | F9: W | H9: S | I9: 0.9996 | J9: 500000 | K9: 1000000
B10: 3 | C10: Inactive
B11: 4 | C11: Lambert 1 | D11: 5457616.68 | E11: 2.337229167 | F11: E | G11: 49.5 | H11: N | I11: 0.999877341 | J11: 600000 | K11: 1200000
B12: 5 | C12: Lambert 2 | D12: 5999695.77 | E12: 2.337229167 | F12: E | G12: 46.8 | H12: N | I12: 0.99987742 | J12: 600000 | K12: 2200000
B13: 6 | C13: Lambert 3 | D13: 6591905.08 | E13: 2.337229167 | F13: E | G13: 44.1 | H13: N | I13: 0.999877499 | J13: 600000 | K13: 3200000
B14: 7 | C14: Lambert 4 | D14: 7053300.18 | E14: 2.337229167 | F14: E | G14: 42.165 | H14: N | I14: 0.99994471 | J14: 234.358 | K14: 185861.369
B15: 8 | C15: Lamb. 2 Etendu | E15: 2.337229167 | F15: E | G15: 46.8 | H15: N | I15: 0.99987742 | J15: 600000 | K15: 2200000
B16: 9 | C16: Lambert 93 | E16: 3 | F16: E | G16: 46.5 | H16: N | I16: 0.9990384 | J16: 700000 | K16: 6600000
B17: 10 | C17: Inactive
F21: Paramètres de projections utilisées en France métropolitaine
C22: Projection | D22: Type | E22: Système | F22: Ellipsoïde | G22: FalseEasting | H22: FalseNorthing | I22: Longitude | J22: Latitude | K22: Facteur
E23: géodésique | G23: Eo | H23: No | I23: à l'origine | J23: à l'origine | K23: D'échelle
C24: CC42 | D24: cc | E24: RGF93 | F24: WGS84 | G24: 1700000 | H24: 1200000 | I24: 2.5 | J24: 42 | K24: 1
C25: CC43 | D25: cc | E25: RGF93 | F25: WGS84 | G25: 1700000 | H25: 2200000 | I25: 2.5 | J25: 43 | K25: 1
C26: CC44 | D26: cc | E26: RGF93 | F26: WGS84 | G26: 1700000 | H26: 3200000 | I26: 2.5 | J26: 44 | K26: 1
C27: CC45 | D27: cc | E27: RGF93 | F27: WGS84 | G27: 1700000 | H27: 4200000 | I27: 2.5 | J27: 45 | K27: 1
C28: CC46 | D28: cc | E28: RGF93 | F28: WGS84 | G28: 1700000 | H28: 5200000 | I28: 2.5 | J28: 46 | K28: 1
C29: CC47 | D29: cc | E29: RGF93 | F29: WGS84 | G29: 1700000 | H29: 6200000 | I29: 2.5 | J29: 47 | K29: 1
C30: CC48 | D30: cc | E30: RGF93 | F30: WGS84 | G30: 1700000 | H30: 7200000 | I30: 2.5 | J30: 48 | K30: 1
C31: CC49 | D31: cc | E31: RGF93 | F31: WGS84 | G31: 1700000 | H31: 8200000 | I31: 2.5 | J31: 49 | K31: 1
C32: CC50 | D32: cc | E32: RGF93 | F32: WGS84 | G32: 1700000 | H32: 9200000 | I32: 2.5 | J32: 50 | K32: 1
C33: Lambert 93 | D33: cc | E33: RGF93 | F33: WGS84 | G33: 700000 | H33: 6600000 | I33: 3 | J33: 46.5 | K33: 0.9990510301
C34: Lambert I | D34: cc | E34: France IGN / NTF | F34: Clarke 1880 IGN | G34: 600000 | H34: 200000 | I34: 2.33722917 | J34: 49.5 | K34: 0.999877341
C35: Lambert II | D35: cc | E35: France IGN / NTF | F35: Clarke 1880 IGN | G35: 600000 | H35: 200000 | I35: 2.33722917 | J35: 46.8 | K35: 0.99987742
C36: Lambert II étendu | D36: cc | E36: France IGN / NTF | F36: Clarke 1880 IGN | G36: 600000 | H36: 2200000 | I36: 2.33722917 | J36: 46.8 | K36: 0.999877499
C37: Lambert III | D37: cc | E37: France IGN / NTF | F37: Clarke 1880 IGN | G37: 600000 | H37: 200000 | I37: 2.33722917 | J37: 44.1 | K37: 0.99994471
C38: Lambert IV | D38: cc | E38: France IGN / NTF | F38: Clarke 1880 IGN | G38: 234.358 | H38: 185861.369 | I38: 2.33722917 | J38: 42.165 | K38: 0.99987742
C39: Lambert 1 Carto | D39: cc | E39: France IGN / NTF | F39: Clarke 1880 IGN | G39: 600000 | H39: 1200000 | I39: 2.33722917 | J39: 49.5 | K39: 0.999877341
C40: Lambert 2 Carto | D40: cc | E40: France IGN / NTF | F40: Clarke 1880 IGN | G40: 600000 | H40: 2200000 | I40: 2.33722917 | J40: 46.8 | K40: 0.99987742
C41: Lambert 3 Carto | D41: cc | E41: France IGN / NTF | F41: Clarke 1880 IGN | G41: 600000 | H41: 3200000 | I41: 2.33722917 | J41: 44.1 | K41: 0.999877499
C42: Lambert 4 Carto | D42: cc | E42: France IGN / NTF | F42: Clarke 1880 IGN | G42: 234.358 | H42: 4185861.369 | I42: 2.33722917 | J42: 42.165 | K42: 0.99994471
C43: UTM 30 Nord | D43: TM | E43: WGS84 | F43: WGS84 | G43: 500000 | H43: O | I43: -3 | J43: 0 | K43: 0.99987742
C44: UTM 31 Nord | D44: TM | E44: WGS84 | F44: WGS84 | G44: 500000 | H44: O | I44: 3 | J44: 0 | K44: 0.999877341
C45: UTM 32 Nord | D45: TM | E45: WGS84 | F45: WGS84 | G45: 500000 | H45: O | I45: 9 | J45: 0 | K45: 0.99987742
C46: UTM 30 Nord | D46: TM | E46: ED50 | F46: International | G46: 500000 | H46: O | I46: -3 | J46: 0 | K46: 0.999877499
C47: UTM 31 Nord | D47: TM | E47: ED50 | F47: International | G47: 500000 | H47: O | I47: 3 | J47: 0 | K47: 0.99994471
C48: UTM 32 Nord | D48: TM | E48: ED50 | F48: International | G48: 500000 | H48: O | I48: 9 | J48: 0 | K48: 0.99987742
E50: 100 | F50: 46.85
E51: 90 | F51: =F50*E51/E50 -> 42.165

Sheet Parametres Proj (hidden)
A1: Ajouter les nouvelles data en fin de colonnes | E1: Ne pas editer cette feuille
A2: Meridien Central en degres | B2: Latitude d'origine | C2: Eastings d'origines | D2: Nothings d'origines | E2: Facteur d'echelle au M C | G2: CM/SP | H2: Lat/Lon Orig | I2: CM SF | J2: FE | K2: FN
A3: 3 | B3: 0 | C3: 0 | D3: -100000 | E3: 0.9990384 | F3: 0 | G3: 69 | H3: 39 | I3: 97 | J3: 97 | K3: 97
A4: 9 | B4: 1 | C4: 234.358 | D4: 0 | E4: 0.9996 | F4: 1 | G4: 35 | H4: 65 | I4: 7 | J4: 7 | K4: 7
A5: 15 | B5: 2 | C5: 200000 | D5: 185861.369 | E5: 0.99960127 | F5: 2 | H5: 53.5
A6: 21 | B6: 3 | C6: 400000 | D6: 200000 | E6: 0.999877341 | F6: 3
A7: 27 | B7: 4 | C7: 500000 | D7: 250000 | E7: 0.99987742 | F7: 4
A8: 45 | B8: 7 | C8: 600000 | D8: 1200000 | E8: 0.99987743 | F8: 7
A9: 51 | B9: 8 | C9: 700000 | D9: 2200000 | E9: 0.999877499 | F9: 8
A10: 57 | B10: 9 | D10: 3200000 | E10: 1.000035 | F10: 9
A11: 63 | B11: 10 | D11: 6600000 | E11: 1 | F11: 10
A12: 69 | B12: 11 | D12: 10000000 | F12: 11
A13: 75 | B13: 12 | D13: 20000000 | F13: 12
A14: 81 | B14: 13 | D14: 3916482.208 | F14: 13
A15: 87 | B15: 14 | F15: 14
A16: 93 | B16: 15 | F16: 15
A17: 103 | B17: 16 | F17: 16
A18: 109 | B18: 17 | F18: 17
A19: 115 | B19: 18 | F19: 18
A20: 121 | B20: 19 | F20: 19
A21: 127 | B21: 20 | F21: 20
A22: 133 | B22: 21 | F22: 21
A23: 139 | B23: 22 | F23: 22
A24: 145 | B24: 23 | F24: 23
A25: 151 | B25: 24 | F25: 24
A26: 157 | B26: 25 | F26: 25
A27: 163 | B27: 26 | F27: 26
A28: 169 | B28: 27 | F28: 27
A29: 175 | B29: 28 | F29: 28
A30: 8 | B30: 29 | F30: 29
A31: 2.337229167 | B31: 30 | F31: 30
B32: 31 | F32: 31
B33: 32 | F33: 32
B34: 33 | F34: 33
B35: 34 | F35: 34
B36: 35 | F36: 35
B37: 36 | F37: 36
B38: 37 | F38: 37
B39: 38 | F39: 38
B40: 39 | F40: 39
B41: 40 | F41: 40
B42: 41 | F42: 41
B43: 42 | F43: 42
B44: 43 | F44: 43
B45: 44 | F45: 44
B46: 45 | F46: 45
B47: 46 | F47: 46
B48: 47 | F48: 47
B49: 48 | F49: 48
B50: 49 | F50: 49
B51: 50 | F51: 50
B52: 51 | F52: 51
B53: 52 | F53: 52
B54: 53 | F54: 53
B55: 54 | F55: 54
B56: 55 | F56: 55
B57: 56 | F57: 56
B58: 57 | F58: 57
B59: 58 | F59: 58
B60: 59 | F60: 59
B61: 60 | F61: 60
B62: 61 | F62: 61
B63: 49.5 | F63: 62
B64: 46.8 | F64: 63
B65: 44.1 | F65: 64
B66: 42.165 | F66: 65
F67: 66
F68: 67
F69: 68
F70: 69
F71: 70
F72: 71
F73: 72
F74: 73
F75: 74
F76: 75
F77: 76
F78: 77
F79: 78
F80: 79
F81: 80
F82: 81
F83: 82
F84: 83
F85: 84
F86: 85
F87: 86
F88: 87
F89: 88
F90: 89
F91: 90
F92: 91
F93: 92
F94: 93
F95: 94
F96: 95
F97: 96
F98: 97
F99: 98
F100: 99
F101: 100
F102: 101
F103: 102
F104: 103
F105: 104
F106: 105
F107: 106
F108: 107
F109: 108
F110: 109
F111: 110
F112: 111
F113: 112
F114: 113
F115: 114
F116: 115
F117: 116
F118: 117
F119: 118
F120: 119
F121: 120
F122: 121
F123: 122
F124: 123
F125: 124
F126: 125
F127: 126
F128: 127
F129: 128
F130: 129
F131: 130
F132: 131
F133: 132
F134: 133
F135: 134
F136: 135
F137: 136
F138: 137
F139: 138
F140: 139
F141: 140
F142: 141
F143: 142
F144: 143
F145: 144
F146: 145
F147: 146
F148: 147
F149: 148
F150: 149
F151: 150
F152: 151
F153: 152
F154: 153
F155: 154
F156: 155
F157: 156
F158: 157
F159: 158
F160: 159
F161: 160
F162: 161
F163: 162
F164: 163
F165: 164
F166: 165
F167: 166
F168: 167
F169: 168
F170: 169
F171: 170
F172: 171
F173: 172
F174: 173
F175: 174
F176: 175
F177: 176
F178: 177
F179: 178
F180: 179
F181: 180
F182: 181
F183: 182
